Cogmind - Beta 10 X1 @@@ ROGUE MODE // 2020.06.04 @ 12:36:54 Player: alice_fexa Result: Escaped! Performance ------------- Evolutions (9) 4500 Regions Visited (34) 6800 Robots Destroyed (182) 910 Value Destroyed (4693) 4693 Prototype IDs (107) 2140 Alien Tech Used (3) 600 Bonus (5477) 5477 TOTAL SCORE: 25120 Bonus ------- High Alert Combat Kills 401 Follower Combat Kills 411 Aligned with FarCom 300 Met Data Miner 300 Met Imprinter 300 Met Zhirov 300 MAIN.C Attacked Warlord 500 Win 3000 Friendly Fire -35 Cogmind --------- Core Integrity 1500/1600 Matter 270/300 Energy 157/160 System Corruption 1% Temperature Cool (3) Movement Flying (95) Ox1 Location To Epsilon Eridani Parts ------- > --- POWER (2) -------- Mini Fusion Reactor Mini Fusion Reactor > --- PROPULSION (3) --- Experimental Cesium-ion Thruster Electron Diverter Electron Diverter > --- UTILITY (19) ----- Medium Storage Unit Medium Storage Unit Inertial Stasis Machine Experimental Sensor Array Experimental Signal Interpreter Improved Melee Analysis Suite Reaction Control System Improved Utility Shielding Improved Utility Shielding Wardrone Bay (0/1) > --- WEAPON (2) ------- Mini Smartbomb Launcher CR-A16's Behemoth Slayer > --- INVENTORY (12) --- Light Antimatter Reactor Advanced Force Field Peak State ------------ > --- POWER ------------ Mini Fusion Reactor Mini Fusion Reactor > --- PROPULSION ------- Experimental Cesium-ion Thruster Electron Diverter Electron Diverter > --- UTILITY ---------- Medium Storage Unit Medium Storage Unit Inertial Stasis Machine Experimental Sensor Array Experimental Signal Interpreter Improved Melee Analysis Suite Reaction Control System Improved Utility Shielding Improved Utility Shielding Wardrone Bay > --- WEAPON ----------- Mini Smartbomb Launcher CR-A16's Behemoth Slayer > --- INVENTORY -------- Light Antimatter Reactor Advanced Force Field [Rating: 227] Favorites ----------- Power Backup Power VII Engine Light Ion Engine Power Core Backup Power VII Reactor Mini Fusion Reactor Propulsion Improved Cesium-ion Thruster Treads Light Treads Leg Aluminum Leg Wheel Wheel Flight Unit Improved Cesium-ion Thruster Utility Advanced Hacking Suite Device Experimental Sensor Array Storage Medium Storage Unit Processor Advanced Signal Interpreter Hackware Advanced Hacking Suite Protection Experimental Utility Shielding Weapon Improved Datajack Energy Gun Heavy EM Shotgun Energy Cannon EM Pulse Cannon Ballistic Gun Light Assault Rifle Ballistic Cannon Improved Light Cannon Launcher Mini Smartbomb Launcher Slashing Weapon Makeshift Sword Piercing Weapon Plasma Lance Special Melee Weapon Improved Datajack Build | -11 -10 -10 -10 -9 -8 -7 -7 -7 -7 -7 -7 -6 -6 -6 -6 -6 -6 -6 -5 -5 -5 -5 -5 -5 -5 -4 -4 -4 -4 -4 -3 -3 -2 -1 ------- Run | Scr Mat Min Exi Min Mat Fac Was Fac Low Low Zio Pro Fac Was Fac Low Low Dat Pro Fac Was Fac Upp Upp Zhi Pro Fac Upp Upp War Pro Res Res Acc Slots Evolved 18 | . . . . . 4 2 . . . . . . 2 . . . . . . 2 . . . . . . 2 . . . . 2 2 2 Power 1 | . . . . . . . . . . . . . . . . . . . . . . . . . . . . . . . . . 1 . Propulsion 1 | . . . . . . . . . . . . . . . . . . . . . . . . . . . . . . . . 1 . . Utility 16 | . . . . . 4 2 . . . . . . 2 . . . . . . 2 . . . . . . 2 . . . . 1 1 2 Weapon . | . . . . . . . . . . . . . . . . . . . . . . . . . . . . . . . . . . . Parts Attached 224 | 6 26 13 3 3 45 20 . 9 2 1 6 . 14 1 8 . . 6 4 12 2 9 . . 2 . 2 . 2 14 . 3 3 8 Power 22 | 1 5 4 . 1 6 . . 2 . . . . . . . . . . . 2 . . . . . . . . . . . . 1 . Engine 12 | 1 5 4 . 1 1 . . . . . . . . . . . . . . . . . . . . . . . . . . . . . Core 8 | . . . . . 5 . . 2 . . . . . . . . . . . 1 . . . . . . . . . . . . . . Reactor 2 | . . . . . . . . . . . . . . . . . . . . 1 . . . . . . . . . . . . 1 . Propulsion 45 | 2 8 2 . . 15 3 . . . . 1 . 1 . 5 . . 1 1 2 . 1 . . . . . . . 2 . 1 . . Treads 8 | 1 2 . . . 5 . . . . . . . . . . . . . . . . . . . . . . . . . . . . . Leg 1 | . . . . . 1 . . . . . . . . . . . . . . . . . . . . . . . . . . . . . Wheel 17 | 1 6 2 . . 8 . . . . . . . . . . . . . . . . . . . . . . . . . . . . . Hover . | . . . . . . . . . . . . . . . . . . . . . . . . . . . . . . . . . . . Flight 19 | . . . . . 1 3 . . . . 1 . 1 . 5 . . 1 1 2 . 1 . . . . . . . 2 . 1 . . Utility 96 | 1 7 1 2 . 10 15 . 6 . 1 3 . 10 1 1 . . 1 1 6 2 6 . . 2 . 2 . . 6 . 2 2 8 Device 33 | . . . . . 4 6 . 3 . 1 1 . 1 1 . . . . 1 1 2 2 . . . . . . . 3 . 2 2 3 Storage 19 | 1 7 1 2 . . 2 . 1 . . . . . . . . . . . 1 . 2 . . . . . . . 1 . . . 1 Processor 6 | . . . . . 1 1 . . . . . . 2 . . . . . . . . . . . . . 1 . . . . . . 1 Hackware 21 | . . . . . 1 5 . 2 . . 1 . 6 . . . . . . 3 . 1 . . . . 1 . . . . . . 1 Protection 17 | . . . . . 4 1 . . . . 1 . 1 . 1 . . 1 . 1 . 1 . . 2 . . . . 2 . . . 2 Artifact . | . . . . . . . . . . . . . . . . . . . . . . . . . . . . . . . . . . . Weapon 61 | 2 6 6 1 2 14 2 . 1 2 . 2 . 3 . 2 . . 4 2 2 . 2 . . . . . . 2 6 . . . . Energy Gun 5 | 1 1 . . 1 2 . . . . . . . . . . . . . . . . . . . . . . . . . . . . . Energy Cannon 6 | . . . . . 5 . . . . . . . . . . . . . . . . . . . . . . . . 1 . . . . Ballistic Gun 11 | 1 3 5 1 . 1 . . . . . . . . . . . . . . . . . . . . . . . . . . . . . Ballistic Cannon 4 | . . . . 1 3 . . . . . . . . . . . . . . . . . . . . . . . . . . . . . Launcher 11 | . 2 1 . . 3 . . . . . . . . . 1 . . 1 . . . 1 . . . . . . 1 1 . . . . Special Weapon . | . . . . . . . . . . . . . . . . . . . . . . . . . . . . . . . . . . . Impact Weapon . | . . . . . . . . . . . . . . . . . . . . . . . . . . . . . . . . . . . Slashing Weapon 5 | . . . . . . 1 . . 2 . 1 . . . . . . 1 . . . . . . . . . . . . . . . . Piercing Weapon 14 | . . . . . . . . . . . 1 . 2 . 1 . . 2 1 2 . 1 . . . . . . 1 3 . . . . Special Melee Weapon 5 | . . . . . . 1 . 1 . . . . 1 . . . . . 1 . . . . . . . . . . 1 . . . . Unidentified Prototypes 17 | . . . . . 2 1 . . . 1 . . 1 . . . . . . 2 . . . . 2 . . . . 6 . . . 2 Parts Lost 17 | . 3 . . . 6 1 . 2 . 2 . . 1 . . . . 1 . . . . . . . . . . . . . . . 1 Power 1 | . . . . . 1 . . . . . . . . . . . . . . . . . . . . . . . . . . . . . Propulsion 2 | . 1 . . . 1 . . . . . . . . . . . . . . . . . . . . . . . . . . . . . Utility 6 | . . . . . 1 1 . 1 . 2 . . . . . . . . . . . . . . . . . . . . . . . 1 Weapon 8 | . 2 . . . 3 . . 1 . . . . 1 . . . . 1 . . . . . . . . . . . . . . . . Highest Loss Streak 3 | . 2 . . . 3 1 . 1 . 2 . . 1 . . . . 1 . . . . . . . . . . . . . . . 1 Average Slot Usage (%) 99 | . 99 100 95 94 99 99 100 99 100 82 98 100 99 100 100 100 100 100 100 99 100 99 100 100 99 100 99 100 100 100 100 99 97 90 Engine 2 | . 14 14 14 14 3 . . . . . . . . . . . . . . . . . . . . . . . . . . . . . Core 3 | . . . . . 5 7 7 7 7 7 7 7 6 6 6 6 6 6 6 1 . . . . . . . . . . . . . . Reactor 1 | . . . . . . . . . . . . . . . . . . . . 3 5 5 5 5 5 5 5 5 5 5 5 4 8 7 Treads 3 | . 13 14 14 14 8 . . . . . . . . . . . . . . . . . . . . . . . . . . . . . Wheel 3 | . 13 14 14 14 8 . . . . . . . . . . . . . . . . . . . . . . . . . . . . . Flight 8 | . . . . . . 14 15 15 15 14 14 14 12 12 12 12 12 12 12 10 11 11 11 11 11 11 10 10 10 10 10 13 12 11 Device 11 | . . . . . 11 15 15 21 15 14 21 21 12 12 16 12 12 7 12 11 13 12 11 11 11 11 10 10 10 10 10 12 13 13 Storage 11 | . 28 28 28 28 18 7 7 7 7 7 7 7 6 6 6 6 6 6 6 5 5 8 11 11 11 11 10 10 10 10 10 9 8 7 Processor 5 | . . . . . 6 7 7 7 7 7 7 7 6 6 6 6 6 6 6 5 5 5 5 5 5 5 9 10 10 10 10 9 8 9 Hackware 25 | . . . . . 9 29 30 24 30 15 20 21 35 37 37 37 37 37 37 44 41 38 38 38 38 38 40 40 40 40 40 36 33 24 Protection 4 | . . . . . 9 . . . . . 6 7 6 6 1 6 6 10 6 5 5 4 5 5 4 5 5 5 5 4 5 4 4 5 Energy Gun 1 | . 4 . . 8 4 . . . . . . . . . . . . . . . . . . . . . . . . . . . . . Ballistic Gun 3 | . 21 21 24 5 3 . . . . . . . . . . . . . . . . . . . . . . . . . . . . . Ballistic Cannon 1 | . . . . 8 5 . . . . . . . . . . . . . . . . . . . . . . . . . . . . . Slashing Weapon 2 | . . . . . . 6 7 7 7 7 7 7 6 6 6 6 6 4 . . . . . . . . . . . . . . . . Piercing Weapon 2 | . . . . . . . . . . . . . 2 6 6 . . 3 6 5 5 4 5 5 5 5 5 5 3 5 5 4 4 3 Special Melee Weapon 2 | . . . . . . 6 7 6 7 7 7 7 3 . . . . . . 5 5 5 5 5 5 5 5 5 3 1 . . . . Naked Turns . | . . . . . . . . . . . . . . . . . . . . . . . . . . . . . . . . . . . Heaviest Build 94 | 10 56 73 79 79 88 85 16 17 16 18 20 20 20 20 20 20 20 22 20 21 24 30 29 29 29 29 29 29 31 40 31 34 48 94 Greatest Support 49 | 10 20 10 10 10 20 18 18 18 18 18 20 20 20 20 22 20 20 22 20 21 27 31 31 31 31 31 31 31 31 36 36 36 49 49 Greatest Overweight (x) 8 | . 5 7 7 7 8 7 . . . . . . . . . . . . . . . . . . . . . . . 1 . . . 1 Average Overweight (x) . | . 1 5 7 6 6 . . . . . . . . . . . . . . . . . . . . . . . . . . . . . Largest Inventory Capacity 22 | 6 18 20 20 20 20 22 8 8 8 8 8 8 8 8 8 8 8 8 8 8 8 12 12 12 12 12 12 12 12 12 12 12 12 12 Average Capacity 12 | 5 11 18 20 20 20 6 8 8 8 8 8 8 8 8 8 8 8 8 8 8 8 10 12 12 12 12 12 12 12 12 12 12 12 12 Most Carried 20 | 4 18 19 20 20 20 20 8 8 8 8 8 8 8 8 8 8 8 8 8 8 8 12 12 12 12 12 12 12 12 12 12 12 12 12 Average Carried 11 | 2 11 18 19 19 19 6 7 7 8 8 7 8 7 8 7 8 8 7 7 7 7 10 12 12 12 12 11 12 12 11 11 11 11 10 Final Capacity 20 | 6 18 20 20 20 20 8 8 8 8 8 8 8 8 8 8 8 8 8 8 8 8 12 12 12 12 12 12 12 12 12 12 12 12 12 Final Carried 20 | 4 18 19 20 20 20 8 8 8 8 8 8 8 8 8 8 8 8 8 8 8 7 12 12 12 12 12 12 12 12 12 12 12 12 2 Class Distribution -------------------- 47% | Wizard-Sprinter 18% | Hauler-Mutant 16% | Hacker-Sprinter 7% | Mutant 5% | Scavenger-Mutant Dominant Class ---------------- Mutant | -10/Materials Mutant | -10/Mines Hauler-Mutant | -10/Exiles Hauler-Mutant | -9/Mines Hauler-Mutant | -8/Materials Hacker-Sprinter | -7/Factory Hacker-Sprinter | -7/Waste Hacker-Sprinter | -7/Factory Hacker-Sprinter | -7/Lower Caves Hacker-Sprinter | -7/Lower Caves Hacker-Sprinter | -7/Zion Hacker-Sprinter | -6/Proximity Caves Wizard-Sprinter | -6/Factory Wizard-Sprinter | -6/Waste Wizard-Sprinter | -6/Factory Wizard-Sprinter | -6/Lower Caves Wizard-Sprinter | -6/Lower Caves Wizard-Sprinter | -6/Data Miner Wizard-Sprinter | -5/Proximity Caves Wizard-Sprinter | -5/Factory Wizard-Sprinter | -5/Waste Wizard-Sprinter | -5/Factory Wizard-Sprinter | -5/Upper Caves Wizard-Sprinter | -5/Upper Caves Wizard-Sprinter | -5/Zhirov Wizard-Sprinter | -4/Proximity Caves Wizard-Sprinter | -4/Factory Wizard-Sprinter | -4/Upper Caves Wizard-Sprinter | -4/Upper Caves Wizard-Sprinter | -4/Warlord Wizard-Sprinter | -3/Proximity Caves Wizard-Sprinter | -3/Research Wizard-Sprinter | -2/Research Wizard-Scout | -1/Access Resources | -11 -10 -10 -10 -9 -8 -7 -7 -7 -7 -7 -7 -6 -6 -6 -6 -6 -6 -6 -5 -5 -5 -5 -5 -5 -5 -4 -4 -4 -4 -4 -3 -3 -2 -1 ----------- Run | Scr Mat Min Exi Min Mat Fac Was Fac Low Low Zio Pro Fac Was Fac Low Low Dat Pro Fac Was Fac Upp Upp Zhi Pro Fac Upp Upp War Pro Res Res Acc Matter Collected 3807 | 260 468 272 . 60 1165 220 . 43 70 10 70 . 140 . 114 10 100 . 95 80 . 210 10 . 40 . 20 . 40 107 53 20 23 107 Remotely . | . . . . . . . . . . . . . . . . . . . . . . . . . . . . . . . . . . . Salvage Created 6496 | . 685 319 . . 2482 241 . 138 . . . . 793 . 162 . 50 23 88 163 . 453 . . 118 . 132 . 10 . 119 137 23 360 Parts 360 | . 45 33 . . 132 9 . 12 . . . . 31 . 9 . 6 3 2 7 . 20 . . 2 . 5 . 1 . 11 15 2 15 Haulers Intercepted 15 | . 1 . . . 4 1 . 1 . . . . 7 . 1 . . . . . . . . . . . . . . . . . . . Recyclers Shooed 2 | . . 1 . . . . . . . . . . . . . . . . . . . 1 . . . . . . . . . . . . Parts Field Recycled . | . . . . . . . . . . . . . . . . . . . . . . . . . . . . . . . . . . . Retrieved Matter . | . . . . . . . . . . . . . . . . . . . . . . . . . . . . . . . . . . . Parts Self-Destructed 37 | . . . . . . . . . . . . . . . . 2 5 . . . . . . . 2 . . . 1 21 6 . . . Prevented 13 | . . . . . . . . . . . . . . . . . . . . . . . . . . . . . . 11 2 . . . Kills | -11 -10 -10 -10 -9 -8 -7 -7 -7 -7 -7 -7 -6 -6 -6 -6 -6 -6 -6 -5 -5 -5 -5 -5 -5 -5 -4 -4 -4 -4 -4 -3 -3 -2 -1 ------- Run | Scr Mat Min Exi Min Mat Fac Was Fac Low Low Zio Pro Fac Was Fac Low Low Dat Pro Fac Was Fac Upp Upp Zhi Pro Fac Upp Upp War Pro Res Res Acc Combat Hostiles Destroyed 102 | . 14 16 . . 45 1 . . . . . . 1 . . . 6 . . . . 4 . . . . . . 1 . 5 2 . 7 Melee 8 | . . . . . . 1 . . . . . . 1 . . . . . . . . . . . . . . . . . 1 2 . 3 Guns 35 | . 8 10 . . 17 . . . . . . . . . . . . . . . . . . . . . . . . . . . . . Cannons 17 | . . . . . 17 . . . . . . . . . . . . . . . . . . . . . . . . . . . . . AOE 38 | . 6 6 . . 7 . . . . . . . . . . . 6 . . . . 4 . . . . . . 1 . 4 . . 4 Classes Destroyed 17 | . 8 . . . 6 1 . . . . . . . . . . . . 1 . . . . . . . . . . . 1 . . . Worker 9 | . 2 . . . 4 . . . . . . . . . 1 . . . . . . 2 . . . . . . . . . . . . Builder 6 | . . . . . 6 . . . . . . . . . . . . . . . . . . . . . . . . . . . . . Tunneler 4 | . 1 1 . . . . . . . . . . . . . . . . . 1 . . . . . . . . . . . . 1 . Hauler 15 | . 1 . . . 4 1 . 1 . . . . 7 . 1 . . . . . . . . . . . . . . . . . . . Recycler 8 | . 2 . . . 2 1 . . . . . . . . . . . . . 1 . 2 . . . . . . . . . . . . Mechanic 1 | . . . . . 1 . . . . . . . . . . . . . . . . . . . . . . . . . . . . . Operator 12 | . 2 . . . 5 2 . 2 . . . . . . 1 . . . . . . . . . . . . . . . . . . . Watcher 22 | . 3 . . . 5 1 . 2 . . . . 2 . 1 . . . . 1 . 3 . . . . 3 . . . . . . 1 Swarmer 49 | . 9 13 . . 8 . . . . . . . . . . . 6 . . . . 4 . . . . . . 1 . 4 . . 4 Grunt 34 | . 5 3 . . 24 . . . . . . . . . . . . . . . . . . . . . . . . . . . . 2 Brawler 2 | . . . . . 2 . . . . . . . . . . . . . . . . . . . . . . . . . . . . . Protector 1 | . . . . . 1 . . . . . . . . . . . . . . . . . . . . . . . . . . . . . Sentry 9 | . . . . . 8 . . . . . . . . . . . . . . . . . . . . . . . . . . . . 1 Hunter 2 | . . . . . 2 . . . . . . . . . . . . . . . . . . . . . . . . . . . . . Programmer 4 | . . . . . . 1 . . . . . . 1 . . . . . . . . . . . . . . . . . . 2 . . Samaritan 2 | . . . . . . . . . . . . . . . . . . . 2 . . . . . . . . . . . . . . . Master Thief 1 | . . . . . . . . . . . . . . . . . . . . . . . . . . . . . . . 1 . . . Best Kill Streak 10 | . 4 6 . . 10 1 . 1 . . . . 1 . 1 . 3 1 . 2 . 4 . . . . 1 . 1 . 4 2 1 4 Combat Bots Only 6 | . 3 6 . . 6 1 . . . . . . 1 . . . 3 . . . . 4 . . . . . . 1 . 4 2 . 4 Max Kills in Single Turn 5 | . 2 3 . . 5 1 . 1 . . . . 1 . 1 . 2 1 1 1 . 3 . . . . 1 . 1 . 4 1 1 2 Gunslinging 1 | . 1 . . . 1 . . . . . . . . . . . . . . . . . . . . . . . . . . . . . Exploded 4 | . 2 3 . . 2 . . . . . . . . . . . 2 . . . . 3 . . . . . . 1 . 4 . . 2 Melee 1 | . . . . . . 1 . . . . . . 1 . . . . . . . . . . . . . . . . . 1 1 . 1 Uniques/NPCs Destroyed 1 | . . . . . . . . . . . . . . . . . . 1 . . . . . . . . . . . . . . . . Data Miner (-6/Data Miner) Combat | -11 -10 -10 -10 -9 -8 -7 -7 -7 -7 -7 -7 -6 -6 -6 -6 -6 -6 -6 -5 -5 -5 -5 -5 -5 -5 -4 -4 -4 -4 -4 -3 -3 -2 -1 -------- Run | Scr Mat Min Exi Min Mat Fac Was Fac Low Low Zio Pro Fac Was Fac Low Low Dat Pro Fac Was Fac Upp Upp Zhi Pro Fac Upp Upp War Pro Res Res Acc Damage Taken 5081 | . 667 446 . . 2248 92 . 108 . 49 . 23 218 . 12 . . 133 . 88 . 89 . 15 . . . . 81 . 116 268 . 428 Core 1064 | . 124 105 . . 291 30 . 25 . 12 . 23 74 . . . . 43 . 40 . 15 . 15 . . . . 39 . 46 82 . 100 Absorbed by Shields . | . . . . . . . . . . . . . . . . . . . . . . . . . . . . . . . . . . . Core Remaining (%) 79 | 100 . . . 8 47 . . . . . . 87 . . . . . . 86 . . . . . . 86 . . . . 92 93 100 93 Volleys Fired 264 | . 68 33 . . 152 . . . . . . . . . . . 5 . . . . 2 . . . . . . 1 . 1 . . 2 Largest 2 | . 2 2 . . 2 . . . . . . . . . . . 1 . . . . 1 . . . . . . 1 . 1 . . 1 Hottest 107 | . 60 40 . . 107 . . . . . . . . . . . 80 . . . . 80 . . . . . . 80 . 80 . . 80 Shots Fired 504 | . 130 63 . 2 298 . . . . . . . . . . . 5 . . . . 2 . . . . . . 1 . 1 . . 2 Gun 273 | . 124 60 . 2 87 . . . . . . . . . . . . . . . . . . . . . . . . . . . . . Cannon 203 | . . . . . 203 . . . . . . . . . . . . . . . . . . . . . . . . . . . . . Launcher 28 | . 6 3 . . 8 . . . . . . . . . . . 5 . . . . 2 . . . . . . 1 . 1 . . 2 Special . | . . . . . . . . . . . . . . . . . . . . . . . . . . . . . . . . . . . Kinetic 310 | . 102 60 . 2 146 . . . . . . . . . . . . . . . . . . . . . . . . . . . . . Thermal 20 | . . . . . 20 . . . . . . . . . . . . . . . . . . . . . . . . . . . . . Explosive 28 | . 6 3 . . 8 . . . . . . . . . . . 5 . . . . 2 . . . . . . 1 . 1 . . 2 Electromagnetic 146 | . 22 . . . 124 . . . . . . . . . . . . . . . . . . . . . . . . . . . . . Robot Hit Streak 16 | . 7 13 . 1 16 . . . . . . . . . . . . . . . . 1 . . . . . . . . . . . . Robot Miss Streak 6 | . 5 3 . 1 6 . . . . . . . . . . . . . . . . . . . . . . . . . . . . . Penetration Max . | . . . . . . . . . . . . . . . . . . . . . . . . . . . . . . . . . . . Secondary Targets 2 | . 1 . . . 1 . . . . . . . . . . . . . . . . . . . . . . . . . . . . . Max Gunslinging Chain 1 | . 1 . . . 1 . . . . . . . . . . . . . . . . . . . . . . . . . . . . . Autonomous 2 | . . . . 2 . . . . . . . . . . . . . . . . . . . . . . . . . . . . . . Shots Hit Robots 464 | . 76 40 . 1 222 13 . 11 . . 2 . 36 . 6 . . 1 3 11 . 16 . . 4 . 7 . . . 1 8 1 5 Core Hits 275 | . 37 27 . . 135 6 . 5 . . . . 14 . 4 . 6 1 2 3 . 10 . . 1 . 4 . 1 . 5 2 1 11 Critical Hits 10 | . 1 . . . 1 . . . . . . . 1 . 1 . . . . 3 . . . . . . 1 . . . . 1 1 . Critical Kills 8 | . 1 . . . . . . . . . . . 1 . 1 . . . . 3 . . . . . . . . . . . 1 1 . Critical Parts Destroyed 2 | . . . . . 1 . . . . . . . . . . . . . . . . . . . . . 1 . . . . . . . Melee Attacks 569 | . . . . . . 52 . 48 2 1 2 10 124 . 33 . 7 7 12 44 . 85 . 2 4 3 22 3 7 6 2 56 22 15 Impact . | . . . . . . . . . . . . . . . . . . . . . . . . . . . . . . . . . . . Slashing 265 | . . . . . . 50 . 47 2 1 . 10 114 . 28 . 7 6 . . . . . . . . . . . . . . . . Piercing 293 | . . . . . . . . . . . . . 9 . 5 . . 1 12 42 . 85 . 2 1 3 22 3 7 6 2 56 22 15 Sneak Attacks 44 | . . . . . . 5 . 5 . . 2 . 10 . 2 . . 1 3 6 . 5 . . 3 . 1 . . . . . 1 . Combat Hostiles . | . . . . . . . . . . . . . . . . . . . . . . . . . . . . . . . . . . . Follow-up Attacks 1 | . . . . . . . . . . . . . . . 1 . . . . . . . . . . . . . . . . . . . Damage Inflicted 18719 | . 1388 704 . 32 6328 743 . 685 . . . . 1975 . 442 . 540 137 530 652 . 1608 . . 178 . 544 . 57 . 450 520 243 963 Guns 2474 | . 834 330 . 32 1278 . . . . . . . . . . . . . . . . . . . . . . . . . . . . . Cannons 3733 | . . . . . 3733 . . . . . . . . . . . . . . . . . . . . . . . . . . . . . Explosions 4063 | . 554 374 . . 1317 . . . . . . . . . . . 540 . . . . 360 . . . . . . 57 . 348 . . 513 Melee 8449 | . . . . . . 743 . 685 . . . . 1975 . 442 . . 137 530 652 . 1248 . . 178 . 544 . . . 102 520 243 450 Ramming . | . . . . . . . . . . . . . . . . . . . . . . . . . . . . . . . . . . . Kinetic 3285 | . 653 330 . 32 2270 . . . . . . . . . . . . . . . . . . . . . . . . . . . . . Thermal 1026 | . 127 41 . . 858 . . . . . . . . . . . . . . . . . . . . . . . . . . . . . Explosive 3225 | . 427 333 . . 647 . . . . . . . . . . . 540 . . . . 360 . . . . . . 57 . 348 . . 513 Electromagnetic 2734 | . 181 . . . 2553 . . . . . . . . . . . . . . . . . . . . . . . . . . . . . Impact . | . . . . . . . . . . . . . . . . . . . . . . . . . . . . . . . . . . . Slashing 3560 | . . . . . . 743 . 685 . . . . 1855 . 277 . . . . . . . . . . . . . . . . . . . Piercing 4889 | . . . . . . . . . . . . . 120 . 165 . . 137 530 652 . 1248 . . 178 . 544 . . . 102 520 243 450 Highest Corruption 10 | . . . . . 1 . 9 9 . . . . 1 10 10 . . . . . 6 5 . . . . . . . . 2 3 . 1 Average Corruption 2 | . . . . . 1 . 9 3 . . . . 1 4 5 . . . . . 5 2 . . . . . . . . 1 2 . 1 Corruption Purged 26 | . . . . . . . . 9 . . . . . . 10 . . . . . 1 6 . . . . . . . . . . . . Effects 59 | . . . . . 1 . 1 19 . . . . 7 1 16 . . . . . 2 10 . . . . . . . . . 2 . . Message Errors 10 | . . . . . . . 1 4 . . . . . . 3 . . . . . 1 1 . . . . . . . . . . . . Matter Fused 10 | . . . . . . . . 1 . . . . . 1 4 . . . . . 1 2 . . . . . . . . . 1 . . Heat Flow Errors 8 | . . . . . . . . 6 . . . . . . 1 . . . . . . 1 . . . . . . . . . . . . Energy Discharges 14 | . . . . . 1 . . 4 . . . . 4 . 2 . . . . . . 3 . . . . . . . . . . . . Parts Rejected 1 | . . . . . . . . . . . . . . . 1 . . . . . . . . . . . . . . . . . . . Data Loss (minor) 7 | . . . . . . . . . . . . . 3 . 1 . . . . . . 2 . . . . . . . . . 1 . . Data Loss (major) 5 | . . . . . . . . 1 . . . . . . 3 . . . . . . 1 . . . . . . . . . . . . Targeting Errors 4 | . . . . . . . . 3 . . . . . . 1 . . . . . . . . . . . . . . . . . . . Overload Shots . | . . . . . . . . . . . . . . . . . . . . . . . . . . . . . . . . . . . Overflow Damage 1506 | . 17 17 . . 213 225 . 49 . . . . 62 . 42 . 51 . 131 232 . 300 . . . . 135 . . . 11 21 . . Projectiles 97 | . . . . . 97 . . . . . . . . . . . . . . . . . . . . . . . . . . . . . Explosions 329 | . 17 17 . . 116 . . . . . . . . . . . 51 . . . . 117 . . . . . . . . 11 . . . Melee 1080 | . . . . . . 225 . 49 . . . . 62 . 42 . . . 131 232 . 183 . . . . 135 . . . . 21 . . Knockbacks 19 | . . . . . 19 . . . . . . . . . . . . . . . . . . . . . . . . . . . . . Impact . | . . . . . . . . . . . . . . . . . . . . . . . . . . . . . . . . . . . Kinetic 18 | . . . . . 18 . . . . . . . . . . . . . . . . . . . . . . . . . . . . . Secondary 1 | . . . . . 1 . . . . . . . . . . . . . . . . . . . . . . . . . . . . . Self-Inflicted Damage 285 | . 87 15 . . 156 . . . . . . . . . . . . . . . . 27 . . . . . . . . . . . . Shots 9 | . 3 1 . . 4 . . . . . . . . . . . . . . . . 1 . . . . . . . . . . . . Rammed . | . . . . . . . . . . . . . . . . . . . . . . . . . . . . . . . . . . . Targets Rammed . | . . . . . . . . . . . . . . . . . . . . . . . . . . . . . . . . . . . Kicked . | . . . . . . . . . . . . . . . . . . . . . . . . . . . . . . . . . . . Crushed . | . . . . . . . . . . . . . . . . . . . . . . . . . . . . . . . . . . . Highest Temperature 275 | . 50 18 . . 134 . . 275 . . . . 203 . 140 . 28 . . . . 178 . . . . . . 2 . . . . 27 Average Temperature 46 | . 16 8 . . 39 . . 117 . . . . 95 . 84 . 17 . . . . 66 . . . . . . 2 . . . . 18 Received Heat Transfer 1341 | . 261 111 . . 846 9 . 6 . 9 . . 9 . 6 . . 18 . 18 . . . . . . . . 21 . . . . 27 Siege Activations . | . . . . . . . . . . . . . . . . . . . . . . . . . . . . . . . . . . . Robots Corrupted 4 | . . . . . 4 . . . . . . . . . . . . . . . . . . . . . . . . . . . . . Combat Hostiles 4 | . . . . . 4 . . . . . . . . . . . . . . . . . . . . . . . . . . . . . Parts Fried 9 | . . . . . 9 . . . . . . . . . . . . . . . . . . . . . . . . . . . . . Impact Corruptions . | . . . . . . . . . . . . . . . . . . . . . . . . . . . . . . . . . . . Robots Melted . | . . . . . . . . . . . . . . . . . . . . . . . . . . . . . . . . . . . Combat Hostiles . | . . . . . . . . . . . . . . . . . . . . . . . . . . . . . . . . . . . Parts Melted 4 | . 2 . . . 1 1 . . . . . . . . . . . . . . . . . . . . . . . . . . . . Heat Transferred 1406 | . 200 50 . . 1156 . . . . . . . . . . . . . . . . . . . . . . . . . . . . . Parts Sabotaged . | . . . . . . . . . . . . . . . . . . . . . . . . . . . . . . . . . . . Parts Stolen 1 | . . . . . . . . . . . . . . . . . . . . . . . . . . . . . . . 1 . . . Parts Stripped . | . . . . . . . . . . . . . . . . . . . . . . . . . . . . . . . . . . . Power Chain Reactions 13 | . 3 . . . 10 . . . . . . . . . . . . . . . . . . . . . . . . . . . . . Missiles Intercepted . | . . . . . . . . . . . . . . . . . . . . . . . . . . . . . . . . . . . Alert | -11 -10 -10 -10 -9 -8 -7 -7 -7 -7 -7 -7 -6 -6 -6 -6 -6 -6 -6 -5 -5 -5 -5 -5 -5 -5 -4 -4 -4 -4 -4 -3 -3 -2 -1 ------- Run | Scr Mat Min Exi Min Mat Fac Was Fac Low Low Zio Pro Fac Was Fac Low Low Dat Pro Fac Was Fac Upp Upp Zhi Pro Fac Upp Upp War Pro Res Res Acc Peak Influence 872 | . 194 472 . 23 872 527 30 434 . . . . 417 1 413 . . . . 451 20 413 . . . . 478 . . . . 110 113 436 Average Influence 172 | . 57 274 . 19 443 263 15 72 . . . . 29 1 54 . . . . 30 18 63 . . . . 43 . . . . 42 60 200 Maximum Alert Level 3 | . . 2 . . 3 2 . 2 . . . . 2 . 2 . . . . 2 . 2 . . . . 2 . . . . . . 2 Low Security (%) 70 | 100 100 25 . 100 23 29 100 99 . . . . 98 100 92 . . . . 98 100 94 . . . . 99 . . . . 100 100 47 Level 1 12 | . . 67 . . 15 54 . . . . . . . . . . . . . . . . . . . . . . . . . . . 51 Level 2 13 | . . 6 . . 45 15 . . . . . . 1 . 7 . . . . 1 . 4 . . . . . . . . . . . 1 Level 3 3 | . . . . . 15 . . . . . . . . . . . . . . . . . . . . . . . . . . . . . Level 4 . | . . . . . . . . . . . . . . . . . . . . . . . . . . . . . . . . . . . Level 5 . | . . . . . . . . . . . . . . . . . . . . . . . . . . . . . . . . . . . High Security . | . . . . . . . . . . . . . . . . . . . . . . . . . . . . . . . . . . . Max Security . | . . . . . . . . . . . . . . . . . . . . . . . . . . . . . . . . . . . Squads Dispatched 51 | . 2 . . . 17 5 . 7 . . . . 7 . 1 . . . . 5 . 1 . . . . 1 . . . . 2 1 2 Investigation 10 | . 1 . . . 2 2 . 2 . . . . 1 . . . . . . 1 . . . . . . . . . . . . . 1 Extermination 15 | . . . . . . 3 . 2 . . . . 1 . 1 . . . . 2 . 1 . . . . 1 . . . . 2 1 1 Reinforcement 16 | . 1 . . . 6 . . 3 . . . . 4 . . . . . . 2 . . . . . . . . . . . . . . Assault 2 | . . . . . 1 . . . . . . . 1 . . . . . . . . . . . . . . . . . . . . . Garrison 8 | . . . . . 8 . . . . . . . . . . . . . . . . . . . . . . . . . . . . . Intercept . | . . . . . . . . . . . . . . . . . . . . . . . . . . . . . . . . . . . Construction Impeded 1 | . . . . . 1 . . . . . . . . . . . . . . . . . . . . . . . . . . . . . Haulers Reinforced 3 | . . . . . . . . . . . . . 2 . . . . . . 1 . . . . . . . . . . . . . . Stealth | -11 -10 -10 -10 -9 -8 -7 -7 -7 -7 -7 -7 -6 -6 -6 -6 -6 -6 -6 -5 -5 -5 -5 -5 -5 -5 -4 -4 -4 -4 -4 -3 -3 -2 -1 --------- Run | Scr Mat Min Exi Min Mat Fac Was Fac Low Low Zio Pro Fac Was Fac Low Low Dat Pro Fac Was Fac Upp Upp Zhi Pro Fac Upp Upp War Pro Res Res Acc Distress Signals 5 | . . . . . 2 . . . . . . . 1 . . . . . . . . 2 . . . . . . . . . . . . Communications Jammed . | . . . . . . . . . . . . . . . . . . . . . . . . . . . . . . . . . . . Distress Signals . | . . . . . . . . . . . . . . . . . . . . . . . . . . . . . . . . . . . Times Spotted 287 | . 23 20 . 6 86 13 2 10 . 4 . 2 15 3 9 . 2 4 . 7 5 18 . 7 . . 6 . 3 . 8 18 2 14 Peak Tracking Total 12 | . 3 6 . 12 6 4 2 2 . 4 . 2 4 3 2 . 2 4 . 2 5 8 . 5 . . 3 . 3 . 4 7 3 6 Tactical Retreats 44 | . . 2 . . 8 2 . 2 . 2 . . 5 . 4 . 2 . . 1 . 6 . 3 . . . . 1 . 1 4 . 1 Traps | -11 -10 -10 -10 -9 -8 -7 -7 -7 -7 -7 -7 -6 -6 -6 -6 -6 -6 -6 -5 -5 -5 -5 -5 -5 -5 -4 -4 -4 -4 -4 -3 -3 -2 -1 ------- Run | Scr Mat Min Exi Min Mat Fac Was Fac Low Low Zio Pro Fac Was Fac Low Low Dat Pro Fac Was Fac Upp Upp Zhi Pro Fac Upp Upp War Pro Res Res Acc Traps Triggered 14 | . 2 . . . 2 2 . 2 . . . . 3 . . . . . . 1 . 2 . . . . . . . . . . . . Indirectly . | . . . . . . . . . . . . . . . . . . . . . . . . . . . . . . . . . . . Trap Hack Attempts . | . . . . . . . . . . . . . . . . . . . . . . . . . . . . . . . . . . . Triggered . | . . . . . . . . . . . . . . . . . . . . . . . . . . . . . . . . . . . Disarmed . | . . . . . . . . . . . . . . . . . . . . . . . . . . . . . . . . . . . Reprogrammed 4 | . . . . . . . . . . . . . . . 4 . . . . . . . . . . . . . . . . . . . Reused 1 | . . . . . . . . . . . . . . . 1 . . . . . . . . . . . . . . . . . . . Traps Extracted . | . . . . . . . . . . . . . . . . . . . . . . . . . . . . . . . . . . . Installed . | . . . . . . . . . . . . . . . . . . . . . . . . . . . . . . . . . . . Triggered 9 | . . . . . . . . . . . . . . . 1 . . . . . . . . . . . . . . 7 1 . . . Machines | -11 -10 -10 -10 -9 -8 -7 -7 -7 -7 -7 -7 -6 -6 -6 -6 -6 -6 -6 -5 -5 -5 -5 -5 -5 -5 -4 -4 -4 -4 -4 -3 -3 -2 -1 ---------- Run | Scr Mat Min Exi Min Mat Fac Was Fac Low Low Zio Pro Fac Was Fac Low Low Dat Pro Fac Was Fac Upp Upp Zhi Pro Fac Upp Upp War Pro Res Res Acc Machines Disabled 16 | . 1 5 . . 6 1 . . . . . . . . . . . 1 . . . 2 . . . . . . . . . . . . Max in Single Turn 5 | . 1 5 . . 2 1 . . . . . . . . . . . 1 . . . 1 . . . . . . . . . . . . Garrison Access 18 | . . . . . 1 2 . 1 . . . . 3 . 3 . . . . 2 . 4 . . . . . . . . . 1 . 1 Machines Sabotaged . | . . . . . . . . . . . . . . . . . . . . . . . . . . . . . . . . . . . Garrisons Compromised . | . . . . . . . . . . . . . . . . . . . . . . . . . . . . . . . . . . . Overloaded Fab Kills . | . . . . . . . . . . . . . . . . . . . . . . . . . . . . . . . . . . . Fab Network Shutdowns 7 | . . . . . . 1 . 1 . . . . 1 . 1 . . . . 1 . 1 . . . . 1 . . . . . . . Hacking | -11 -10 -10 -10 -9 -8 -7 -7 -7 -7 -7 -7 -6 -6 -6 -6 -6 -6 -6 -5 -5 -5 -5 -5 -5 -5 -4 -4 -4 -4 -4 -3 -3 -2 -1 --------- Run | Scr Mat Min Exi Min Mat Fac Was Fac Low Low Zio Pro Fac Was Fac Low Low Dat Pro Fac Was Fac Upp Upp Zhi Pro Fac Upp Upp War Pro Res Res Acc Machines Accessed 171 | . 8 . 2 . 10 20 . 17 3 2 . . 26 . 15 1 1 2 . 15 . 23 1 . 2 . 8 2 . 2 . 5 2 4 Terminals 88 | . 6 . . . 7 10 . 10 . . . . 15 . 8 . . . . 8 . 9 1 . . . 5 1 . . . 4 1 3 Fabricators 18 | . . . . . . 3 . 3 . . . . 3 . 2 . . . . 3 . 3 . . . . 1 . . . . . . . Repair Stations 12 | . 1 . . . 2 2 . 1 . . . . 2 . 1 . . . . 1 . 2 . . . . . . . . . . . . Recycling Units 18 | . 1 . . . . 2 . 2 . . . . 3 . 1 . . . . 1 . 5 . . . . 2 . . . . . 1 . Scanalyzers 1 | . . . . . . 1 . . . . . . . . . . . . . . . . . . . . . . . . . . . . Garrison Access 18 | . . . . . 1 2 . 1 . . . . 3 . 3 . . . . 2 . 4 . . . . . . . . . 1 . 1 Total Hacks 538 | . 25 . 2 . 27 68 . 44 10 11 . . 74 . 51 1 1 4 . 66 . 74 1 . 9 . 36 2 . 2 . 16 6 8 Successful 451 | . 16 . 2 . 16 45 . 31 10 11 . . 66 . 47 1 1 4 . 58 . 69 1 . 9 . 34 2 . 2 . 15 6 5 Failed 85 | . 8 . . . 11 23 . 13 . . . . 7 . 4 . . . . 8 . 5 . . . . 2 . . . . 1 . 3 Catastrophic 7 | . . . . . 3 2 . 1 . . . . 1 . . . . . . . . . . . . . . . . . . . . . Database Lockouts 2 | . 1 . . . . . . . . . . . 1 . . . . . . . . . . . . . . . . . . . . . Manual 266 | . 18 . 1 . 16 25 . 24 . . . . 41 . 28 . . . . 40 . 28 . . . . 20 . . . . 15 4 6 Terminals 326 | . 22 . . . 18 42 . 31 . . . . 52 . 32 . . . . 40 . 35 1 . . . 25 1 . . . 15 5 7 Fabricators 94 | . . . . . . 10 . 7 . . . . 12 . 12 . . . . 20 . 24 . . . . 9 . . . . . . . Repair Stations 34 | . 2 . . . 6 9 . 2 . . . . 4 . 3 . . . . 2 . 6 . . . . . . . . . . . . Recycling Units 19 | . 1 . . . . 2 . 3 . . . . 3 . 1 . . . . 1 . 5 . . . . 2 . . . . . 1 . Scanalyzers 2 | . . . . . . 2 . . . . . . . . . . . . . . . . . . . . . . . . . . . . Garrison Access 22 | . . . . . 3 3 . 1 . . . . 3 . 3 . . . . 3 . 4 . . . . . . . . . 1 . 1 Terminal Hacks 238 | . 6 . 2 . 6 21 . 14 10 11 . . 35 . 24 1 1 4 . 26 . 26 1 . 9 . 19 2 . 2 . 11 4 3 Record 23 | . . . 1 . . . . . 8 10 . . . . . . . 1 . . . . 1 . 1 . . 1 . . . . . . Part Schematic 16 | . . . . . 1 3 . . . . . . 1 . 4 . . . . 5 . 1 . . . . 1 . . . . . . . Robot Analysis 5 | . . . . . . . . . . . . . . . 1 . . . . . . . . . 4 . . . . . . . . . Prototype ID Bank 28 | . 4 . . . . 4 . . . . . . 4 . . . . 3 . 1 . 5 . . 4 . 3 . . . . . . . Open Door 9 | . . . . . . . . . 2 1 . . . . . 1 1 . . . . . . . . . . 1 . 2 . . . 1 Level Access Points 3 | . . . . . . . . . . . . . . . . . . . . . . . . . . . . . . . . 1 1 1 Branch Access Points 7 | . . . . . . 1 . 1 . . . . 1 . 1 . . . . 1 . 1 . . . . 1 . . . . . . . Machine Index 7 | . . . . . . 1 . 1 . . . . . . 1 . . . . 1 . 1 . . . . 1 . . . . . . 1 Terminal Index 5 | . 1 . . . . 1 . . . . . . 1 . 1 . . . . . . . . . . . . . . . . . 1 . Fabricator Index 1 | . . . . . . . . . . . . . 1 . . . . . . . . . . . . . . . . . . . . . Repair Station Index 1 | . . . . . . . . 1 . . . . . . . . . . . . . . . . . . . . . . . . . . Alert Level 13 | . . . . . . 1 . 2 . . . . 3 . 1 . . . . 2 . 3 . . . . . . . . . 1 . . Unreport Threat 35 | . 1 . . . 3 4 . 3 . . . . 5 . 6 . . . . 4 . 3 . . . . 4 . . . . 2 . . Locate Traps 36 | . . . . . . 2 . 3 . . . . 8 . 4 . . . . 5 . 6 . . . . 4 . . . . 3 1 . Reprogram Traps 1 | . . . . . . . . . . . . . . . 1 . . . . . . . . . . . . . . . . . . . Recall Investigation 3 | . . . . . . 1 . 1 . . . . 1 . . . . . . . . . . . . . . . . . . . . . Recall Extermination 7 | . . . . . . . . 2 . . . . . . 1 . . . . 2 . 1 . . . . 1 . . . . . . . Recall Reinforcements 6 | . . . . . 2 . . . . . . . 3 . . . . . . 1 . . . . . . . . . . . . . . Recall Assault 1 | . . . . . . . . . . . . . 1 . . . . . . . . . . . . . . . . . . . . . Hauler Manifests 8 | . . . . . . 1 . . . . . . 2 . 1 . . . . 1 . 1 . . . . 2 . . . . . . . Registered Prototypes 6 | . . . . . . 1 . . . . . . 1 . 1 . . . . 1 . 1 . . . . 1 . . . . . . . Zone Layout 16 | . . . . . . 1 . . . . . . 3 . 1 . . . . 2 . 3 . . . . 1 . . . . 4 1 . EX-Prototype ID Bank 1 | . . . 1 . . . . . . . . . . . . . . . . . . . . . . . . . . . . . . . Fabricator Hacks 61 | . . . . . . 5 . 5 . . . . 8 . 8 . . . . 14 . 16 . . . . 5 . . . . . . . Network Status 10 | . . . . . . . . . . . . . . . . . . . . 4 . 5 . . . . 1 . . . . . . . Load Schematic 23 | . . . . . . 2 . 2 . . . . 3 . 4 . . . . 5 . 5 . . . . 2 . . . . . . . Build 28 | . . . . . . 3 . 3 . . . . 5 . 4 . . . . 5 . 6 . . . . 2 . . . . . . . Repair Station Hacks 31 | . 2 . . . 6 6 . 2 . . . . 4 . 3 . . . . 2 . 6 . . . . . . . . . . . . Scan Component 15 | . 1 . . . 3 2 . 1 . . . . 2 . 2 . . . . 1 . 3 . . . . . . . . . . . . Repair 14 | . 1 . . . 3 2 . 1 . . . . 2 . 1 . . . . 1 . 3 . . . . . . . . . . . . Refit 2 | . . . . . . 2 . . . . . . . . . . . . . . . . . . . . . . . . . . . . Recycling Unit Hacks 18 | . 1 . . . . 2 . 2 . . . . 3 . 1 . . . . 1 . 5 . . . . 2 . . . . . 1 . Report Inventory 12 | . . . . . . 2 . 1 . . . . 1 . 1 . . . . . . 5 . . . . 2 . . . . . . . Retrieve Components 6 | . 1 . . . . . . 1 . . . . 2 . . . . . . 1 . . . . . . . . . . . . 1 . Scanalyzer 2 | . . . . . . 2 . . . . . . . . . . . . . . . . . . . . . . . . . . . . Insert Component 1 | . . . . . . 1 . . . . . . . . . . . . . . . . . . . . . . . . . . . . Analyze 1 | . . . . . . 1 . . . . . . . . . . . . . . . . . . . . . . . . . . . . Garrison Access Hacks 18 | . . . . . 1 2 . 1 . . . . 3 . 3 . . . . 2 . 4 . . . . . . . . . 1 . 1 Seal Access 18 | . . . . . 1 2 . 1 . . . . 3 . 3 . . . . 2 . 4 . . . . . . . . . 1 . 1 Unauthorized Hacks 83 | . 7 . . . 3 7 . 7 . . . . 13 . 8 . . . . 13 . 12 . . . . 8 . . . . 3 1 1 Terminals 54 | . 7 . . . 3 4 . 6 . . . . 10 . 4 . . . . 7 . 4 . . . . 4 . . . . 3 1 1 Track 1 | . 1 . . . . . . . . . . . . . . . . . . . . . . . . . . . . . . . . . Assimilate 12 | . 1 . . . . 2 . 2 . . . . 4 . 1 . . . . 1 . . . . . . 1 . . . . . . . Botnet 40 | . 4 . . . 3 2 . 4 . . . . 6 . 3 . . . . 6 . 4 . . . . 3 . . . . 3 1 1 Detonate 1 | . 1 . . . . . . . . . . . . . . . . . . . . . . . . . . . . . . . . . Fabricators 29 | . . . . . . 3 . 1 . . . . 3 . 4 . . . . 6 . 8 . . . . 4 . . . . . . . Report 3 | . . . . . . . . . . . . . . . . . . . . 1 . 1 . . . . 1 . . . . . . . Prioritize 11 | . . . . . . 1 . 1 . . . . 1 . 2 . . . . 2 . 3 . . . . 1 . . . . . . . Siphon 10 | . . . . . . 1 . . . . . . 1 . 2 . . . . 2 . 3 . . . . 1 . . . . . . . Haulers 5 | . . . . . . 1 . . . . . . 1 . . . . . . 1 . 1 . . . . 1 . . . . . . . Repair Stations . | . . . . . . . . . . . . . . . . . . . . . . . . . . . . . . . . . . . Recycling Units . | . . . . . . . . . . . . . . . . . . . . . . . . . . . . . . . . . . . Scanalyzers . | . . . . . . . . . . . . . . . . . . . . . . . . . . . . . . . . . . . Garrison Access . | . . . . . . . . . . . . . . . . . . . . . . . . . . . . . . . . . . . Data Cores Recovered 4 | . . . . . 2 1 . . . . . . . . 1 . . . . . . . . . . . . . . . . . . . Used . | . . . . . . . . . . . . . . . . . . . . . . . . . . . . . . . . . . . Hacking Detections 90 | . 7 . . . 10 17 . 15 . . . . 13 . 10 . . . . 6 . 5 . . . . 4 . . . . 1 . 2 Full Trace Events 4 | . . . . . . 1 . 2 . . . . . . . . . . . 1 . . . . . . . . . . . . . . Feedback Events 2 | . . . . . . 1 . 1 . . . . . . . . . . . . . . . . . . . . . . . . . . Hackware Fried 2 | . . . . . . 1 . 1 . . . . . . . . . . . . . . . . . . . . . . . . . . Feedback Blocked . | . . . . . . . . . . . . . . . . . . . . . . . . . . . . . . . . . . . Robot Schematics Acquired . | . . . . . . . . . . . . . . . . . . . . . . . . . . . . . . . . . . . Robots Built . | . . . . . . . . . . . . . . . . . . . . . . . . . . . . . . . . . . . Matter . | . . . . . . . . . . . . . . . . . . . . . . . . . . . . . . . . . . . Time . | . . . . . . . . . . . . . . . . . . . . . . . . . . . . . . . . . . . Total Robot Build Rating . | . . . . . . . . . . . . . . . . . . . . . . . . . . . . . . . . . . . Part Schematics Acquired 17 | . . . . . 1 4 . . . . . . 1 . 4 . . . . 5 . 1 . . . . 1 . . . . . . . Parts Built 25 | . . . . . . 2 . 2 . . . . 4 . 4 . . . . 5 . 6 . . . . 2 . . . . . . . Matter 5713 | . . . . . . 278 . 537 . . . . 742 . 853 . . . . 1274 . 1553 . . . . 476 . . . . . . . Time 1713 | . . . . . . 148 . 143 . . . . 265 . 231 . . . . 302 . 455 . . . . 169 . . . . . . . Total Part Build Rating 143 | . . . . . . 4 . 9 . . . . 24 . 20 . . . . 33 . 41 . . . . 12 . . . . . . . Parts Repaired 14 | . 1 . . . 3 2 . 1 . . . . 2 . 1 . . . . 1 . 3 . . . . . . . . . . . . Time 589 | . 26 . . . 96 45 . 78 . . . . 102 . 35 . . . . 35 . 172 . . . . . . . . . . . . Parts Recycled . | . . . . . . . . . . . . . . . . . . . . . . . . . . . . . . . . . . . Recycled Matter . | . . . . . . . . . . . . . . . . . . . . . . . . . . . . . . . . . . . Retrieved Matter . | . . . . . . . . . . . . . . . . . . . . . . . . . . . . . . . . . . . Retrieved Components 18 | . 3 . . . . . . 2 . . . . 11 . . . . . . 1 . . . . . . . . . . . . 1 . Parts Scanalyzed 1 | . . . . . . 1 . . . . . . . . . . . . . . . . . . . . . . . . . . . . Part Schematics Acquired 1 | . . . . . . 1 . . . . . . . . . . . . . . . . . . . . . . . . . . . . Parts Damaged . | . . . . . . . . . . . . . . . . . . . . . . . . . . . . . . . . . . . Bothacking | -11 -10 -10 -10 -9 -8 -7 -7 -7 -7 -7 -7 -6 -6 -6 -6 -6 -6 -6 -5 -5 -5 -5 -5 -5 -5 -4 -4 -4 -4 -4 -3 -3 -2 -1 ------------ Run | Scr Mat Min Exi Min Mat Fac Was Fac Low Low Zio Pro Fac Was Fac Low Low Dat Pro Fac Was Fac Upp Upp Zhi Pro Fac Upp Upp War Pro Res Res Acc Used RIF Installer . | . . . . . . . . . . . . . . . . . . . . . . . . . . . . . . . . . . . Robots Hacked 10 | . . . . . . 1 . 1 . . 2 . 1 . . . . . . 2 . . . . 3 . . . . . . . . . Non-combat 5 | . . . . . . 1 . 1 . . . . 1 . . . . . . 2 . . . . . . . . . . . . . . Combat 5 | . . . . . . . . . . . 2 . . . . . . . . . . . . . 3 . . . . . . . . . Robot Hacks Applied 10 | . . . . . . 1 . 1 . . 2 . 1 . . . . . . 2 . . . . 3 . . . . . . . . . parse_system 6 | . . . . . . . . . . . 2 . . . . . . . . 1 . . . . 3 . . . . . . . . . find_chute 3 | . . . . . . 1 . . . . . . 1 . . . . . . 1 . . . . . . . . . . . . . . find_fabricator 1 | . . . . . . . . 1 . . . . . . . . . . . . . . . . . . . . . . . . . . Relay Couplers Released . | . . . . . . . . . . . . . . . . . . . . . . . . . . . . . . . . . . . Robots Rewired . | . . . . . . . . . . . . . . . . . . . . . . . . . . . . . . . . . . . Allies Hacked . | . . . . . . . . . . . . . . . . . . . . . . . . . . . . . . . . . . . Hacks Repelled . | . . . . . . . . . . . . . . . . . . . . . . . . . . . . . . . . . . . Allies | -11 -10 -10 -10 -9 -8 -7 -7 -7 -7 -7 -7 -6 -6 -6 -6 -6 -6 -6 -5 -5 -5 -5 -5 -5 -5 -4 -4 -4 -4 -4 -3 -3 -2 -1 -------- Run | Scr Mat Min Exi Min Mat Fac Was Fac Low Low Zio Pro Fac Was Fac Low Low Dat Pro Fac Was Fac Upp Upp Zhi Pro Fac Upp Upp War Pro Res Res Acc Total Allies 17 | . 1 3 . . . 2 . 2 . . 2 . 3 . 1 . . . . 1 1 . . . . . 1 . . . . . . . Largest Group 3 | . 1 3 3 3 3 1 . 1 . . 2 2 1 . 1 . . . . 1 1 . . . . . 1 . . . . . . . Highest-Rated Group 51 | . 10 40 40 40 40 26 . 26 . . 51 51 10 . 10 . . . . 26 31 . . . . . 26 . . . . . . . Highest-Rated Ally 31 | . 10 16 16 16 16 26 . 26 . . 31 31 10 . 10 . . . . 26 31 . . . . . 26 . . . . . . . Total Orders 13 | . . . . . . 2 . . . . . . 2 . 2 . . . . 5 . . . . . . . . . 1 . . . 1 STAY 6 | . . . . . . 1 . . . . . . 1 . 1 . . . . 3 . . . . . . . . . . . . . . ROAM 5 | . . . . . . 1 . . . . . . 1 . 1 . . . . 2 . . . . . . . . . . . . . . EXPLORE 2 | . . . . . . . . . . . . . . . . . . . . . . . . . . . . . . 1 . . . 1 Ally Attacks 44 | . . . . 6 21 . . . . . . 5 . . . . . . . . 5 . . . . . . . . . . . . 7 Total Damage 1329 | . . . . 75 267 . . . . . . 65 . . . . . . . . 104 . . . . . . . . . . . . 818 Kills 10 | . . . . 2 4 . . . . . . . . . . . . . . . . . . . . . . . . . . . . 4 Allies Corrupted . | . . . . . . . . . . . . . . . . . . . . . . . . . . . . . . . . . . . Allies Melted . | . . . . . . . . . . . . . . . . . . . . . . . . . . . . . . . . . . . Intel | -11 -10 -10 -10 -9 -8 -7 -7 -7 -7 -7 -7 -6 -6 -6 -6 -6 -6 -6 -5 -5 -5 -5 -5 -5 -5 -4 -4 -4 -4 -4 -3 -3 -2 -1 ------- Run | Scr Mat Min Exi Min Mat Fac Was Fac Low Low Zio Pro Fac Was Fac Low Low Dat Pro Fac Was Fac Upp Upp Zhi Pro Fac Upp Upp War Pro Res Res Acc Robot Analysis Total 5 | . . . . . . . . . . . . . . . 1 . . . . . . . . . 4 . . . . . . . . . Derelict Logs Recovered 10 | . . 2 . . . . . . 1 . 1 . . . . . 2 . 2 . . . . . . 1 . 1 . . . . . . Drone Launches 3 | . . . . . . . . . . . . . . . . . . . . . . . . . . . . . . 1 . . . 2 Drone Recoveries 2 | . . . . . . . . . . . . . . . . . . . . . . . . . . . . . . 1 . . . 1 Exploration | -11 -10 -10 -10 -9 -8 -7 -7 -7 -7 -7 -7 -6 -6 -6 -6 -6 -6 -6 -5 -5 -5 -5 -5 -5 -5 -4 -4 -4 -4 -4 -3 -3 -2 -1 ------------- Run | Scr Mat Min Exi Min Mat Fac Was Fac Low Low Zio Pro Fac Was Fac Low Low Dat Pro Fac Was Fac Upp Upp Zhi Pro Fac Upp Upp War Pro Res Res Acc Turns Passed 22657 | 41 1273 764 535 151 4478 1602 32 1353 259 143 364 314 2846 25 1043 97 331 72 240 1143 59 2020 170 99 64 140 367 142 279 368 221 983 252 387 Spaces Moved 26936 | 36 926 452 351 86 1645 2145 96 1879 370 364 712 378 3538 74 1126 294 516 99 432 1865 85 2830 454 348 183 350 874 494 407 1023 532 1124 296 552 Core 2 | 1 1 . . . . . . . . . . . . . . . . . . . . . . . . . . . . . . . . . Treads 34 | . 2 . . . 32 . . . . . . . . . . . . . . . . . . . . . . . . . . . . . Legs 1 | . . . . . 1 . . . . . . . . . . . . . . . . . . . . . . . . . . . . . Wheels 3467 | 35 923 452 351 86 1612 8 . . . . . . . . . . . . . . . . . . . . . . . . . . . . Hover . | . . . . . . . . . . . . . . . . . . . . . . . . . . . . . . . . . . . Flight 23432 | . . . . . . 2137 96 1879 370 364 712 378 3538 74 1126 294 516 99 432 1865 85 2830 454 348 183 350 874 494 407 1023 532 1124 296 552 Fastest Speed 25 | 50 80 130 150 140 150 32 32 32 32 32 32 32 32 32 32 32 32 32 32 27 27 27 27 27 27 27 27 27 27 27 27 27 25 25 Average Speed 43 | 79 99 139 150 149 160 33 32 32 32 32 32 32 32 32 32 32 32 32 32 28 27 27 27 27 27 27 27 27 27 27 27 27 25 26 Slowest Speed 360 | 80 250 150 150 150 360 160 32 32 32 32 32 32 32 32 32 32 32 32 32 32 27 27 27 27 27 27 27 27 27 102 27 27 25 95 Overloaded Moves . | . . . . . . . . . . . . . . . . . . . . . . . . . . . . . . . . . . . Propulsion Burnouts . | . . . . . . . . . . . . . . . . . . . . . . . . . . . . . . . . . . . Robots Hopped 45 | . . . . . . 3 . 6 1 . . . 3 . . . . . . 3 . 10 . . . . . . . . 1 13 . 5 Cave-ins Triggered . | . . . . . . . . . . . . . . . . . . . . . . . . . . . . . . . . . . . Teleports 1 | . . . . . . . . . . . . . . . . . . . . . . . . . 1 . . . . . . . . . Exploration Rate (%) 56 | 4 99 88 70 14 93 43 89 38 47 54 86 54 68 79 29 53 55 77 60 43 80 65 61 65 62 56 21 75 45 91 59 26 11 15 Regions Visited 34 Branch Regions 19 Pre-discovered Areas 5 | . . 1 1 . . . . . 2 . 1 . . . . . . . . . . . . . . . . . . . . . . . Known Exits Taken 23 | . . . . . 1 . . 1 1 1 1 1 . . 1 1 1 1 1 . . 1 1 1 1 1 1 1 1 1 1 1 1 . Unknown Exits Taken 5 | 1 1 1 1 1 . . . . . . . . . . . . . . . . . . . . . . . . . . . . . . Scrap Searched 28 | . . 1 . 2 . . . . 2 1 5 . . . . 3 2 . 1 . . . 2 1 . 1 . 3 2 . 2 . . . Spaces Dug 391 | . . . . . 8 30 . 33 2 1 . 10 72 . 23 . 7 2 9 26 . 64 . 1 . 3 10 3 7 6 . 45 20 9 Terrain Destroyed 731 | . 44 32 . 2 116 30 . 33 2 1 . 10 72 . 23 . 92 2 9 26 . 82 . 1 . 3 10 3 25 6 27 45 20 15 Melee 383 | . . . . . . 30 . 33 2 1 . 10 72 . 23 . 7 2 9 26 . 64 . 1 . 3 10 3 7 6 . 45 20 9 Projectile 14 | . . . . 2 12 . . . . . . . . . . . . . . . . . . . . . . . . . . . . . AOE 334 | . 44 32 . . 104 . . . . . . . . . . . 85 . . . . 18 . . . . . . 18 . 27 . . 6 Actions | -11 -10 -10 -10 -9 -8 -7 -7 -7 -7 -7 -7 -6 -6 -6 -6 -6 -6 -6 -5 -5 -5 -5 -5 -5 -5 -4 -4 -4 -4 -4 -3 -3 -2 -1 --------- Run | Scr Mat Min Exi Min Mat Fac Was Fac Low Low Zio Pro Fac Was Fac Low Low Dat Pro Fac Was Fac Upp Upp Zhi Pro Fac Upp Upp War Pro Res Res Acc Total 36503 | 45 1176 541 362 108 3216 2968 97 2555 505 387 844 560 5124 74 1774 296 668 128 513 2412 120 3949 500 349 192 390 973 497 562 1100 603 1705 440 770 Wait 8185 | . 95 20 3 15 1296 719 . 593 131 21 122 173 1441 . 600 3 141 13 65 471 33 989 47 . . 38 69 1 146 36 69 534 118 183 Move 26814 | 35 925 451 350 85 1644 2139 95 1866 367 363 711 377 3532 73 1125 293 515 98 431 1859 84 2809 453 347 182 349 873 493 406 1022 529 1098 295 540 Hop 44 | . . . . . . 3 . 6 1 . . . 3 . . . . . . 3 . 10 . . . . . . . . 1 12 . 5 Pick Up 150 | 4 33 9 1 2 33 9 1 7 . . 2 . 6 . 4 . . 2 1 8 . 18 . . . . 4 . . 2 1 1 1 1 Fast Attach 77 | 6 6 1 1 3 10 6 . 3 2 2 1 . 6 . 2 . . . . 4 . 2 . . 4 . 1 . . 9 . 2 1 5 Attach 39 | . 3 . . . 9 9 . 1 . . 1 . 2 . . . . . 1 4 1 1 . . . . 1 . . . . 1 2 3 Detach 21 | . . . . . 1 1 . . . . . . 2 . . . . . . 5 . . . . . . . . . . . . 1 11 Swap 111 | . 17 12 2 . 26 5 . 5 . . 4 . 6 1 6 . . 6 3 4 1 6 . . . . . . 2 5 . . . . Drop 198 | . 29 15 5 3 45 25 1 8 2 . 1 . 6 . 6 . . 2 . 10 1 9 . . 2 . 3 . . 20 . 1 . 4 Fire 264 | . 68 33 . . 152 . . . . . . . . . . . 5 . . . . 2 . . . . . . 1 . 1 . . 2 Melee 563 | . . . . . . 52 . 48 2 1 2 10 120 . 31 . 7 7 12 44 . 85 . 2 4 3 22 3 7 6 2 56 22 15 Ram . | . . . . . . . . . . . . . . . . . . . . . . . . . . . . . . . . . . . Kick . | . . . . . . . . . . . . . . . . . . . . . . . . . . . . . . . . . . . Crush . | . . . . . . . . . . . . . . . . . . . . . . . . . . . . . . . . . . . Escape Stasis 37 | . . . . . . . . 18 . . . . . . . . . . . . . 18 . . . . . . . . . . . 1 Rewire . | . . . . . . . . . . . . . . . . . . . . . . . . . . . . . . . . . . . Trap . | . . . . . . . . . . . . . . . . . . . . . . . . . . . . . . . . . . . Miscellaneous . | . . . . . . . . . . . . . . . . . . . . . . . . . . . . . . . . . . . Route ------- -11/Scrapyard -10/Materials (discovered 4 exits: [*Mat x3] / [*Min]) -10/Mines (discovered 3 exits: [*Mat x2] / *Exi) -10/Exiles -9/Mines -8/Materials (discovered 2 exits: *Fac x2) -7/Factory (discovered 2 exits: *Low x2) -7/Waste -7/Factory (discovered 3 exits: *Fac / *Low x2) -7/Lower Caves -7/Lower Caves (discovered 2 exits: *Fac / *Zio) -7/Zion -6/Proximity Caves -6/Factory (discovered 6 exits: *Fac x4 / *Low x2) -6/Waste -6/Factory (discovered 3 exits: *Fac / *Low x2) -6/Lower Caves -6/Lower Caves (discovered 2 exits: Fac / *Dat) -6/Data Miner -5/Proximity Caves -5/Factory (discovered 5 exits: *Fac x3 / Upp x2) -5/Waste -5/Factory (discovered 3 exits: *Fac / *Upp x2) -5/Upper Caves -5/Upper Caves -5/Zhirov -4/Proximity Caves -4/Factory (discovered 5 exits: *Upp x2 / Ext x2 / Arm) -4/Upper Caves -4/Upper Caves -4/Warlord -3/Proximity Caves -3/Research (discovered 4 exits: *Res x3 / [*Qua]) -2/Research (discovered 3 exits: *Acc x3) -1/Access To Epsilon Eridani History --------- Turn | Location | Event 13 | -11/Scrapyard | Discovered new exit (range 15) 42 | -11/Scrapyard | Entered Materials 79 | -10/Materials | Discovered new exit (range 16) 213 | -10/Materials | Discovered new exit (range 16) 311 | -10/Materials | Build established: Mutant 405 | -10/Materials | Repaired EM Pulse Gun 416 | -10/Materials | Discovered new exit (range 7) 925 | -10/Materials | Discovered new exit (range 10) 1111 | -10/Materials | Central database locked down 1315 | -10/Materials | Entered Mines 1394 | -10/Mines | Found a damaged Exp. Sensor Array with a note attached 1400 | -10/Mines | Found Prototype Device 1477 | -10/Mines | Core integrity fell below 50% 1510 | -10/Mines | Discovered new exit (range 3) 1552 | -10/Mines | Learned 2 Materials zone layouts 1641 | -10/Mines | Core integrity fell below 20% 1698 | -10/Mines | Discovered new exit (range 3) 1822 | -10/Mines | Learned location of Zion (-7) 1982 | -10/Mines | Assisted by bots powering up and referring to "LRC-V3" 1990 | -10/Mines | Received a Rocket Launcher from a helpful Derelict 2057 | -10/Mines | Build established: Hauler-Mutant 2064 | -10/Mines | Deemed a non-threat by the Exiles lab entrance 2064 | -10/Mines | Discovered new exit (range 5) 2079 | -10/Mines | Entered Exiles 2079 | -10/Exiles | Accompanied by 3 allies 2117 | -10/Exiles | Met 8R-AWN 2141 | -10/Exiles | Met EX-HEX 2208 | -10/Exiles | Met EX-DEC 2396 | -10/Exiles | Met EX-BIN 2414 | -10/Exiles | Aligned with FarCom system 2415 | -10/Exiles | Given EX-Vault access code 2450 | -10/Exiles | Opened EX-Vault 2459 | -10/Exiles | Found Firepult 2466 | -10/Exiles | Found AWS/Gauss 2502 | -10/Exiles | Warned to stay clear of 0b10 Research branches 2599 | -10/Exiles | Discovered new exit (range 10) 2614 | -10/Exiles | Stole two prototypes: AWS/Gauss, Firepult 2614 | -10/Exiles | Entered Mines 2614 | -9/Mines | Accompanied by 3 allies 2615 | -9/Mines | Assembled infested the area 2738 | -9/Mines | Discovered new exit (range 9) 2765 | -9/Mines | Entered Materials 2765 | -8/Materials | Accompanied by 3 allies 2765 | -8/Materials | Evolved 4 slots: Utility x4 2766 | -8/Materials | Identified exit to Factory 3128 | -8/Materials | Garrison activated, responded to threat 3486 | -8/Materials | Build established: Scavenger-Mutant 3873 | -8/Materials | Garrison activated, responded to threat 4303 | -8/Materials | Build established: Hauler-Mutant 4406 | -8/Materials | Garrison activated, responded to threat 4765 | -8/Materials | First assault squad dispatched 5353 | -8/Materials | Lost 3 parts (1p2w) 5388 | -8/Materials | Build established: Scavenger-Mutant 5485 | -8/Materials | Repaired Lgt. Treads 5525 | -8/Materials | Repaired Lgt. Nuclear Core 5862 | -8/Materials | Build established: Hauler-Mutant 6722 | -8/Materials | Core integrity fell below 50% 7029 | -8/Materials | Discovered exit to Factory (range 10) 7106 | -8/Materials | Repaired Imp. Sensor Array 7243 | -8/Materials | Entered Factory 7243 | -7/Factory | Evolved 2 slots: Utility x2 7245 | -7/Factory | FarCom data flow suspended 7273 | -7/Factory | Identified Exp. Sensor Array 7634 | -7/Factory | Build established: Hacker-Mutant 7805 | -7/Factory | Fabricated Imp. Flight Unit? 7866 | -7/Factory | Fabricated Imp. Flight Unit? 8042 | -7/Factory | Local fabrication network quarantined 8126 | -7/Factory | Build established: Hacker-Sprinter 8198 | -7/Factory | Repaired Exp. Sensor Array 8557 | -7/Factory | Identified exit to Lower Caves 8588 | -7/Factory | System Shield fried by hacking feedback 8607 | -7/Factory | Repaired Imp. Grenade Launcher 8845 | -7/Factory | Sucked down chute 8845 | -7/Factory | Entered Waste 8848 | -7/Waste | Spotted C-40 Crusher 8854 | -7/Waste | Spotted C-40 Crusher 8860 | -7/Waste | EMP discharged 8860 | -7/Waste | Spotted C-40 Crusher 8862 | -7/Waste | Spotted C-40 Crusher 8869 | -7/Waste | Discovered new exit (range 11) 8872 | -7/Waste | Spotted C-40 Crusher 8872 | -7/Waste | Spotted C-40 Crusher 8877 | -7/Waste | Identified exit to Factory 8877 | -7/Waste | Entered Factory 9197 | -7/Factory | Discovered new exit (range 3) 9198 | -7/Factory | Identified exit to Factory 9288 | -7/Factory | Fabricated Imp. Cesium-ion Thruster? 9651 | -7/Factory | Hacking Suite fried by hacking feedback 9777 | -7/Factory | Local fabrication network quarantined 9851 | -7/Factory | Fabricated Exp. Sensor Array? 10104 | -7/Factory | Repaired Broken System Restoration Module 10230 | -7/Factory | Entered Lower Caves 10261 | -7/Lower Caves | Learned location of 1 exit from Factory 10261 | -7/Lower Caves | Learned Factory security intel 10261 | -7/Lower Caves | Learned Armory security intel 10261 | -7/Lower Caves | Learned Factory terminal intel 10261 | -7/Lower Caves | Learned Research terminal intel 10261 | -7/Lower Caves | Learned Research garrison access intel 10392 | -7/Lower Caves | Discovered new exit (range 15) 10486 | -7/Lower Caves | Identified exit to Lower Caves 10489 | -7/Lower Caves | Entered another Lower Caves area 10492 | -7/Lower Caves | Discovered exit to Factory (range 10) 10551 | -7/Lower Caves | Found Alien Artifact 10551 | -7/Lower Caves | Identified Core Expander 10551 | -7/Lower Caves | Installed Core Expander, added new Utility slot 10607 | -7/Lower Caves | Discovered new exit (range 10) 10617 | -7/Lower Caves | Learned Research emergency access door positions 10617 | -7/Lower Caves | Learned Armory emergency access door positions 10617 | -7/Lower Caves | Learned Armory stockpile data 10617 | -7/Lower Caves | Learned Factory security intel 10617 | -7/Lower Caves | Learned Factory terminal intel 10631 | -7/Lower Caves | Identified exit to Zion 10632 | -7/Lower Caves | Entered Zion 10646 | -7/Zion | Found CR-A16's Pointy Stick 10687 | -7/Zion | Discovered new exit (range 16) 10690 | -7/Zion | Given A8's code to call for help 10729 | -7/Zion | Gained Derelict followers 10808 | -7/Zion | Learned location of 1 exit from Lower Caves 10846 | -7/Zion | Received a hallucinogenic algorithm 10972 | -7/Zion | Identified exit to Proximity Caves 10996 | -7/Zion | Entered Proximity Caves 10996 | -6/Proximity Caves | Accompanied by 2 allies 11259 | -6/Proximity Caves | Spotted B-75 Beast 11310 | -6/Proximity Caves | Entered Factory 11310 | -6/Factory | Evolved 2 slots: Utility x2 11311 | -6/Factory | Identified exit to Factory 11312 | -6/Factory | Identified exit to Lower Caves 11314 | -6/Factory | Loaded intel: 19 terminal locations 11441 | -6/Factory | Fabricated Adv. Hacking Suite (x1) 11496 | -6/Factory | Fabricated Adv. Hacking Suite (x1) 11556 | -6/Factory | Fabricated Adv. Hacking Suite (x1) 11863 | -6/Factory | Build established: Wizard-Sprinter 11916 | -6/Factory | Fabricated Adv. System Shield (x1) 11951 | -6/Factory | Central database locked down 12005 | -6/Factory | Local fabrication network quarantined 12010 | -6/Factory | First assault squad dispatched 12071 | -6/Factory | Discovered exit to Factory (range 9) 12072 | -6/Factory | Found Prototype Processor 12072 | -6/Factory | Identified Exp. Targeting Computer 12536 | -6/Factory | Repaired Imp. Medium Armor Plating 12971 | -6/Factory | Repaired Exp. Sensor Array 13158 | -6/Factory | Spotted B-75 Beast 13869 | -6/Factory | Found Exp. Signal Interpreter 14156 | -6/Factory | Sucked down chute 14156 | -6/Factory | Entered Waste 14159 | -6/Waste | Spotted C-40 Crusher 14171 | -6/Waste | EMP discharged 14171 | -6/Waste | System corruption reached 10% 14171 | -6/Waste | Spotted C-40 Crusher 14173 | -6/Waste | Spotted C-40 Crusher 14174 | -6/Waste | Spotted C-40 Crusher 14176 | -6/Waste | Spotted C-40 Crusher 14177 | -6/Waste | Discovered new exit (range 11) 14180 | -6/Waste | Identified exit to Factory 14181 | -6/Waste | Entered Factory 14183 | -6/Factory | Loaded intel: 19 terminal locations 14525 | -6/Factory | Fabricated Exp. Utility Shielding? 14584 | -6/Factory | Fabricated Imp. Cesium-ion Thruster (x1) 14678 | -6/Factory | Discovered exit to Factory (range 5) 14770 | -6/Factory | Fabricated Mni. Smartbomb Launcher (x1) 14847 | -6/Factory | Fabricated Gravity Neutralizing Apparatus (x1) 14880 | -6/Factory | Local fabrication network quarantined 14947 | -6/Factory | Repaired Imp. Cesium-ion Thruster 15224 | -6/Factory | Entered Lower Caves 15225 | -6/Lower Caves | Identified exit to Lower Caves 15315 | -6/Lower Caves | Encountered a Warlord checkpoint 15321 | -6/Lower Caves | Entered another Lower Caves area 15497 | -6/Lower Caves | Learned Factory emergency access door positions 15608 | -6/Lower Caves | Encountered a Warlord checkpoint 15650 | -6/Lower Caves | Discovered new exit (range 8) 15652 | -6/Lower Caves | Identified exit to Data Miner 15652 | -6/Lower Caves | Entered Data Miner 15652 | -6/Data Miner | Discovered new exit (range 6) 15659 | -6/Data Miner | Met Data Miner 15664 | -6/Data Miner | Acquired the access code to Warlord's prototype stash 15670 | -6/Data Miner | Received God Mode back door access code from Data Miner 15694 | -6/Data Miner | Revealed the true nature of CR-A1G's Pointy Stick 15694 | -6/Data Miner | Destroyed Data Miner 15701 | -6/Data Miner | Found Prototype Hackware 15703 | -6/Data Miner | Found Prototype Hackware 15705 | -6/Data Miner | Data Conduit disabled 15724 | -6/Data Miner | Identified exit to Proximity Caves 15724 | -6/Data Miner | Entered Proximity Caves 15776 | -5/Proximity Caves | Learned Factory security intel 15791 | -5/Proximity Caves | Learned 4 Factory zone layouts 15943 | -5/Proximity Caves | Discovered exit to Factory (range 9) 15964 | -5/Proximity Caves | Entered Factory 15964 | -5/Factory | Evolved 2 slots: Utility x2 15967 | -5/Factory | Identified Ghost Barrier 15968 | -5/Factory | Identified Quantum Router 16050 | -5/Factory | Discovered new exit (range 11) 16191 | -5/Factory | Identified exit to Factory 16214 | -5/Factory | Fabricated Mni. Fusion Reactor? 16261 | -5/Factory | Fabricated Mni. Fusion Reactor? 16344 | -5/Factory | Fabricated Exp. Cesium-ion Thruster? 16550 | -5/Factory | Discovered exit to Factory (range 4) 16782 | -5/Factory | Identified exit to Upper Caves 16827 | -5/Factory | Fabricated Adv. Hacking Suite (x1) 16945 | -5/Factory | Discovered exit to Factory (range 16) 16963 | -5/Factory | Repaired Imp. Cesium-ion Thruster? 17046 | -5/Factory | Fabricated Plasma Lance? 17059 | -5/Factory | Local fabrication network quarantined 17107 | -5/Factory | Manually triggered Chute Trap 17107 | -5/Factory | Sucked down chute 17107 | -5/Factory | Entered Waste 17108 | -5/Waste | Met a frightened Derelict 17110 | -5/Waste | Spotted C-40 Crusher 17116 | -5/Waste | Spotted C-40 Crusher 17116 | -5/Waste | Spotted C-40 Crusher 17117 | -5/Waste | Spotted C-40 Crusher 17122 | -5/Waste | EMP discharged 17127 | -5/Waste | Discovered new exit (range 11) 17130 | -5/Waste | Identified exit to Factory 17166 | -5/Waste | Spotted C-40 Crusher 17166 | -5/Waste | Spotted C-40 Crusher 17166 | -5/Waste | Entered Factory 17325 | -5/Factory | Fabricated Plasma Lance (x1) 17342 | -5/Factory | Fabricated Exp. Cesium-ion Thruster? 17419 | -5/Factory | Fabricated Inertial Stasis Machine (x1) 17811 | -5/Factory | Fabricated Inertial Stasis Machine (x1) 18131 | -5/Factory | Repaired Med. Storage Unit 18396 | -5/Factory | Discovered exit to Factory (range 15) 18739 | -5/Factory | Fabricated Exp. Hacking Suite (x1) 18786 | -5/Factory | Fabricated Exp. Hacking Suite (x1) 18923 | -5/Factory | Repaired Imp. Cesium-ion Thruster 18949 | -5/Factory | Local fabrication network quarantined 19013 | -5/Factory | Repaired Mni. Smartbomb Launcher 19186 | -5/Factory | Entered Upper Caves 19226 | -5/Upper Caves | Spotted B-75 Beast 19349 | -5/Upper Caves | Discovered new exit (range 10) 19352 | -5/Upper Caves | Identified exit to Upper Caves 19356 | -5/Upper Caves | Entered another Upper Caves area 19358 | -5/Upper Caves | Attracted the attention of an 0b10 checkpoint 19443 | -5/Upper Caves | Spotted 6O-TL6(f) 19445 | -5/Upper Caves | Encountered a Master Thief 19446 | -5/Upper Caves | Spotted SM-TLF(f) 19447 | -5/Upper Caves | Encountered a Master Thief 19451 | -5/Upper Caves | Discovered new exit (range 15) 19455 | -5/Upper Caves | Identified exit to Zhirov 19455 | -5/Upper Caves | Entered Zhirov 19455 | -5/Zhirov | Discovered new exit (range 3) 19460 | -5/Zhirov | Met Zhirov 19478 | -5/Zhirov | Zhirov requested help retrieving the SGEMP Prototype 19483 | -5/Zhirov | Found Alien Artifact 19483 | -5/Zhirov | Identified Integrated Dissipator 19483 | -5/Zhirov | Installed Integrated Dissipator, increased core heat dissipation (+20) 19490 | -5/Zhirov | Found Alien Artifact 19490 | -5/Zhirov | Identified Transdimensional Reconstructor 19490 | -5/Zhirov | Warped through subspace 19518 | -5/Zhirov | Identified exit to Proximity Caves 19519 | -5/Zhirov | Entered Proximity Caves 19523 | -4/Proximity Caves | Learned Research emergency access door positions 19646 | -4/Proximity Caves | Discovered exit to Factory (range 14) 19659 | -4/Proximity Caves | Entered Factory 19659 | -4/Factory | Evolved 2 slots: Utility x2 19660 | -4/Factory | Identified exit to Armory 19749 | -4/Factory | Fabricated Exp. Utility Shielding? 19859 | -4/Factory | Fabricated Imp. Fusion Compressor (x1) 19939 | -4/Factory | Identified exit to Upper Caves 19939 | -4/Factory | Identified exit to Extension 19956 | -4/Factory | Local fabrication network quarantined 20026 | -4/Factory | Entered Upper Caves 20106 | -4/Upper Caves | Encountered a Warlord checkpoint 20155 | -4/Upper Caves | Learned Research terminal intel 20166 | -4/Upper Caves | Discovered new exit (range 8) 20168 | -4/Upper Caves | Identified exit to Upper Caves 20168 | -4/Upper Caves | Entered another Upper Caves area 20445 | -4/Upper Caves | Discovered new exit (range 8) 20447 | -4/Upper Caves | Identified exit to Warlord 20447 | -4/Upper Caves | Entered Warlord 20552 | -4/Warlord | Found Prototype Device 20552 | -4/Warlord | Identified Exp. Cloaking Device 20558 | -4/Warlord | Found Prototype Device 20558 | -4/Warlord | Identified Exp. Focal Shield 20618 | -4/Warlord | Visited the Vortex Lab 20623 | -4/Warlord | Warlord's base attacked by MAIN.C 20623 | -4/Warlord | Found Prototype Energy Cannon 20623 | -4/Warlord | Identified Vortex Cannon 20674 | -4/Warlord | Found Prototype Device 20703 | -4/Warlord | Found Prototype Device 20703 | -4/Warlord | Identified Minesniffer Drone Bay 20794 | -4/Warlord | Opened side exit 20808 | -4/Warlord | Discovered new exit (range 9) 20815 | -4/Warlord | Identified exit to Proximity Caves 20815 | -4/Warlord | Entered Proximity Caves 20857 | -3/Proximity Caves | Spotted X8-JPM(f) 20858 | -3/Proximity Caves | Encountered a Master Thief 20859 | -3/Proximity Caves | Prototype Device stolen by Master Thief 20864 | -3/Proximity Caves | Destroyed X8-JPM(f) 20974 | -3/Proximity Caves | Spotted S5-FXH(f) 20977 | -3/Proximity Caves | Encountered a Master Thief 21033 | -3/Proximity Caves | Discovered new exit (range 12) 21036 | -3/Proximity Caves | Identified exit to Research 21036 | -3/Proximity Caves | Entered Research 21036 | -3/Research | Evolved 2 slots: Propulsion x1, Utility x1 21038 | -3/Research | Loaded intel: 17 terminal locations 21039 | -3/Research | Loaded intel: 3 garrison access locations 21109 | -3/Research | Identified exit to Research 21744 | -3/Research | Discovered new exit (range 10) 22019 | -3/Research | Entered another Research area 22019 | -2/Research | Evolved 2 slots: Power x1, Utility x1 22021 | -2/Research | Loaded intel: 18 terminal locations 22130 | -2/Research | Identified exit to Access 22186 | -2/Research | Spotted B-90 Cyclops 22271 | -2/Research | Entered Access 22271 | -1/Access | Evolved 2 slots: Utility x2 22275 | -1/Access | Identified exit to Surface 22576 | -1/Access | Identified Wardrone Bay 22658 | *** | Escaped! Last Messages --------------- 22614_ >> Reconnected with Wardrone. 22615_ K-01 Serf cleans the Terminal. 22648_ Wardrone follow-up attacks with Prototype Slashing Weapon. 22648_ Wardrone: "WARLORD FOREVER!" 22648_ P-80 Master destroyed. 22648_ Wardrone follow-up attacks with Prototype Slashing Weapon. 22648_ Destroyed Imp. Antigrav System. 22650_ P-80 Master Prototype Energy Gun severed. 22650_ Wardrone follow-up attacks with Prototype Slashing Weapon. 22651_ K-01 Serf collects debris. 22651_ Wardrone follow-up attacks with Prototype Slashing Weapon. 22651_ Destroyed Adv. Heat Sink. 22652_ K-01 Serf cleans the Terminal. 22653_ Wardrone: "WARLORD FOREVER!" 22653_ P-80 Master destroyed. 22654_ Wardrone follow-up attacks with Prototype Slashing Weapon. 22654_ Wardrone: "WARLORD FOREVER!" 22654_ P-80 Master destroyed. 22655_ K-01 Serf cleans the Terminal. 22655_ K-01 Serf collects debris. Map ----- +----------------------------------------------------+ | ?????????# ??????? k % # # | | ?????????? #############+## # "###### | | ???????k?k # #????# # # ???? | | ?????????? # #????+ + # ?? | | ??????????# ## " #????# # #? | | ??????????# ## """ #????# # #? | | ??????????# ## """?????+ + #?? ## | | ??????????# ## ???????# #############?? #? | | ??????????# #? ????????# #??????????????? #? | | ??????????# #? ??????????# #??????????????? #? | | ??????????# ###/############# #########????????#? | | ??????????+ #? | | ??????????# A A k #? | | Y?????????# ############################### #? | | ??????????+ #???????????????????????????????????? | | ??????????# #???????????????????????????????????? | | ??????????# #???????????????????????????????????? | | ??????????# #???????????????????????????????????? | | ??????????# #?????###???????????????????????????? | | ??????????# ####### ##########??????????????????? | | ??????????# """T""" "??????????????????? | | ??????????# """ """ "????BB????????????? | | ??????????# %% "????BB????????????? | | ??????????# k "??????????????????? | | ??????????# u "" "??????????????????? | | ??????????# % k u N@" "??????????????????? | | ??????????# =*! "??????????????????? | | ??????????# |%![ "????BB????????????? | | ??????????# =[!==% "????BB????????????? | | ??????????# !!!%|! "??????????????????? | | ??????????# ####### ##########??????????????????? | | ??????????# #?????###???????????????????????????? | | ??????????# #???????????????????????????????????? | | ??????????# #???????????????????????????????????? | | ??????????# #???????????????????????????????????? | | ??????????# #???????????????????????????????????? | | ??????????# #???????????????????????????????????? | | ??????????# #???????????????????????????????????? | | ?????????## ##??????????????????????????????????? | | ?????????# ##########+#???????????????????????? | | ?????????# "" k ????????????????????? | | ?????????# "T k ?Y??????????????????? | | ?????????# #####+######???????????????????????? | | ?????????######??????????????????????????????????? | | ?????????????????????????????????????????????????? | | ?????????????????????????????????????????????????? | | ?????????????????????????????????????????????????? | | ?????????????????????????????????????????????????? | | ?????????????????????????????????????????????????? | | ?????????????????????????????????????????????????? | +----------------------------------------------------+ Best States ------------- Heat Dissipation 72 Energy Generation 49 Energy Capacity 250 Matter Stores 300 Matter Capacity 600 Sight Range 22 Robot Scan Range 30 Terrain Scan Density 10 Additional Mass Support 16 Armor Coverage 225 Resistance: KI 30 Utility Shielding 90 Evasion (%) 77 Melee Accuracy 6 Recoil Reduction 1 Offensive Hacking 98 Defensive Hacking 59 Item Schematics ----------------- Imp. Flight Unit | -8/Materials | Hacked Hvy. Pick | -7/Factory | Hacked Adv. Hacking Suite | -7/Factory | Hacked Exp. Sensor Array | -7/Factory | Scanalyzed Imp. Cesium-ion Thruster | -7/Factory | Hacked Adv. System Shield | -6/Factory | Hacked Gravity Neutralizing Apparatus | -6/Factory | Hacked Exp. Utility Shielding | -6/Factory | Hacked Mni. Smartbomb Launcher | -6/Factory | Hacked Exp. Cesium-ion Thruster | -6/Factory | Hacked Mni. Fusion Reactor | -5/Factory | Hacked Exp. Melee Analysis Suite | -5/Factory | Hacked Imp. Fusion Compressor | -5/Factory | Hacked Plasma Lance | -5/Factory | Hacked Inertial Stasis Machine | -5/Factory | Hacked Exp. Hacking Suite | -5/Factory | Hacked Adv. Powered Armor | -4/Factory | Hacked Robot Schematics ------------------ None Fabricated ------------ Imp. Flight Unit | x1 | -7/Factory Imp. Flight Unit | x1 | -7/Factory Imp. Cesium-ion Thruster | x1 | -7/Factory Exp. Sensor Array | x1 | -7/Factory Adv. Hacking Suite | x1 | -6/Factory Adv. Hacking Suite | x1 | -6/Factory Adv. Hacking Suite | x1 | -6/Factory Adv. System Shield | x1 | -6/Factory Exp. Utility Shielding | x1 | -6/Factory Imp. Cesium-ion Thruster | x1 | -6/Factory Mni. Smartbomb Launcher | x1 | -6/Factory Gravity Neutralizing Apparatus | x1 | -6/Factory Mni. Fusion Reactor | x1 | -5/Factory Mni. Fusion Reactor | x1 | -5/Factory Exp. Cesium-ion Thruster | x1 | -5/Factory Adv. Hacking Suite | x1 | -5/Factory Plasma Lance | x1 | -5/Factory Plasma Lance | x1 | -5/Factory Exp. Cesium-ion Thruster | x1 | -5/Factory Inertial Stasis Machine | x1 | -5/Factory Inertial Stasis Machine | x1 | -5/Factory Exp. Hacking Suite | x1 | -5/Factory Exp. Hacking Suite | x1 | -5/Factory Exp. Utility Shielding | x1 | -4/Factory Imp. Fusion Compressor | x1 | -4/Factory Alien Tech Used ----------------- Core Expander Integrated Dissipator Transdimensional Reconstructor Achievements -------------- None Challenges ------------ None Game ------ Seed ReactionTractorDerivative Manual? 0 Play Time 04:00:15 Cumulative 866.6 hours Start 2020.06.03 @ 08:28:58 End 2020.06.04 @ 12:36:54 Sessions 8 Manual Loads 0 Difficulty Rogue Special Mode None Game No. 715 Rogue 675 Adventurer 40 Explorer 0 Win Type 0 Total 88 Types 54/2/22/2/1/3/4 Lore% 93 Gallery% 96 Achievement% 79 Wizard Run 0 Options --------- ASCII 0 Keyboard 0 Movement Numpad Keybinds 0 Fullscreen 0 Font 20/Terminus Map View 76x50 Tactical HUD 1 Map Filters NONE Filters NONE Steam 1 RUN: 50bb778d-e71f-437d-9de2-76887524cae8